fUST/lending_fUST_20250628
["ID","MTS","AMOUNT","RATE_DAILY","PERIOD"]
[368297858,1751099452656,-303.81059378,0.00019178,2]
[368297859,1751099452730,-155.96545503,0.00019178,2]
[368297860,1751099452742,-154.87004827,0.00019178,2]
[368297861,1751099452755,-300.0,0.00019178,2]
[368297862,1751099751938,300.0,0.00022152,30]
[368297868,1751100424276,255.0,0.00018031,2]
[368297869,1751100433139,-300.0,0.00018175,2]
[368297870,1751100433162,-164.41002326,0.00018176,2]
[368297871,1751100433183,-169.29996246,0.00018176,2]
[368297873,1751100488372,319.913118,0.00013699,2]
[368297875,1751100512407,393.52542515,0.00018076,2]
[368297900,1751100632022,-300.0,0.00018174,2]
[368297901,1751100632031,-300.0,0.00018174,2]
[368297903,1751100632041,-300.0,0.00018174,2]
[368297904,1751100632050,-1200.0,0.00018174,2]
[368297905,1751100632059,-300.0,0.00018174,2]
[368297907,1751100632068,-500.0,0.00018175,2]
[368297908,1751100632077,-500.0,0.00018175,2]
[368297911,1751100632087,-500.0,0.00018175,2]
[368297912,1751100632097,-500.0,0.00018175,2]
[368297914,1751100632106,-500.0,0.00018175,2]
[368297916,1751100632115,-500.0,0.00018175,2]
[368297918,1751100632125,-500.0,0.00018175,2]
[368297920,1751100632135,-500.0,0.00018175,2]
[368297922,1751100632145,-500.0,0.00018175,2]
[368297924,1751100632155,-500.0,0.00018175,2]
[368297926,1751100632164,-500.0,0.00018175,2]
[368297928,1751100632174,-500.0,0.00018175,2]
[368297930,1751100632183,-500.0,0.00018175,2]
[368297933,1751100632193,-500.0,0.00018175,2]
[368297935,1751100632202,-500.0,0.00018175,2]
[368297937,1751100632212,-500.0,0.00018175,2]
[368297939,1751100632223,-169.9316,0.00018175,2]
[368297941,1751100632232,-500.0,0.00018175,2]
[368297943,1751100632241,-500.0,0.00018175,2]
[368297945,1751100632251,-500.0,0.00018175,2]
[368297947,1751100632260,-324.17504088,0.00018175,2]
[368297949,1751100632269,-500.0,0.00018175,2]
[368297951,1751100632278,-500.0,0.00018175,2]
[368297953,1751100632288,-500.0,0.00018175,2]
[368297955,1751100632297,-500.0,0.00018175,2]
[368297957,1751100632306,-559.16237627,0.00018175,2]
[368297959,1751100632315,-500.0,0.00018175,2]
[368297961,1751100632324,-500.0,0.00018175,2]
[368297963,1751100632333,-500.0,0.00018175,2]
[368297964,1751100632342,-406.59293801,0.00018175,2]
[368297967,1751100632352,-500.0,0.00018175,2]
[368297968,1751100632361,-500.0,0.00018175,2]
[368297970,1751100632371,-500.0,0.00018175,2]
[368297972,1751100632380,-500.0,0.00018175,2]
[368297974,1751100632389,-500.0,0.00018175,2]
[368297976,1751100632398,-500.0,0.00018175,2]
[368297978,1751100632408,-500.0,0.00018175,2]
[368297981,1751100632417,-500.0,0.00018175,2]
[368297983,1751100632427,-500.0,0.00018175,2]
[368297985,1751100632436,-500.0,0.00018175,2]
[368297987,1751100632446,-500.0,0.00018175,2]
[368297989,1751100632455,-500.0,0.00018175,2]
[368297991,1751100632465,-500.0,0.00018175,2]
[368297993,1751100632475,-500.0,0.00018175,2]
[368297995,1751100632484,-500.0,0.00018175,2]
[368297997,1751100632493,-169.41338202,0.00018175,2]
[368297999,1751100632503,-550.0,0.00018175,2]
[368298001,1751100632512,-500.0,0.00018175,2]
[368298003,1751100632522,-500.0,0.00018175,2]
[368298005,1751100632532,-500.0,0.00018175,2]
[368298007,1751100632542,-500.0,0.00018175,2]
[368298009,1751100632551,-500.0,0.00018175,2]
[368298011,1751100632561,-500.0,0.00018175,2]
[368298013,1751100632571,-360.0,0.00018175,2]
[368298015,1751100632580,-500.0,0.00018175,2]
[368298017,1751100632589,-500.0,0.00018175,2]
[368298019,1751100632598,-399.99807392,0.00018175,2]
[368298021,1751100632608,-500.0,0.00018175,2]
[368298023,1751100632617,-239.63075264,0.00018175,2]
[368298025,1751100632626,-500.0,0.00018175,2]
[368298027,1751100632636,-500.0,0.00018175,2]
[368298029,1751100632645,-500.0,0.00018175,2]
[368298031,1751100632655,-500.0,0.00018175,2]
[368298033,1751100632664,-500.0,0.00018175,2]
[368298035,1751100632673,-500.0,0.00018175,2]
[368298037,1751100632682,-500.0,0.00018175,2]
[368298039,1751100632691,-500.0,0.00018175,2]
[368298041,1751100632701,-345.78719078,0.00018175,2]
[368298043,1751100632710,-160.0,0.00018176,2]
[368298045,1751100632719,-24900.0,0.00018178,2]
[368298047,1751100632728,-2400.32109275,0.00018622,2]
[368298049,1751100632738,-2400.32109275,0.00018831,2]
[368298051,1751100632747,-151.0,0.00019,2]
[368298053,1751100632756,-2400.32109275,0.00019073,2]
[368298055,1751100632765,-1245.39750825,0.00019078,2]
[368298057,1751100632774,-461.77232432,0.00019078,2]
[368298059,1751100632783,-323.24062702,0.00019078,2]
[368298061,1751100632793,-393.52542513,0.00019085,2]
[368298063,1751100632802,-467.39,0.00019168,3]
[368298065,1751100632811,-296.27,0.00019168,3]
[368298067,1751100632820,-888.81,0.00019168,3]
[368298069,1751100632829,-500.0,0.00019173,2]
[368298071,1751100632839,-500.0,0.00019173,2]
[368298073,1751100632848,-500.0,0.00019173,2]
[368298075,1751100632857,-500.0,0.00019173,2]
[368298077,1751100632867,-500.0,0.00019173,2]
[368298079,1751100632876,-460.0,0.00019178,2]
[368298081,1751100632885,-460.0,0.00019178,2]
[368298083,1751100632895,-460.0,0.00019178,2]
[368298085,1751100632904,-460.0,0.00019178,2]
[368298087,1751100632913,-460.0,0.00019178,2]
[368298089,1751100632922,-391.28280935,0.00019178,2]
[368298091,1751100632931,-500.0,0.00019178,2]
[368298093,1751100632941,-500.8302258,0.00019178,2]
[368298095,1751100632950,-460.0,0.00019178,2]
[368298097,1751100632960,-606.21742393,0.00019178,2]
[368298098,1751100632969,-460.0,0.00019178,2]
[368298099,1751100632978,-508.62065805,0.00019178,2]
[368298100,1751100632988,-460.0,0.00019178,2]
[368298102,1751100632998,-460.0,0.00019178,2]
[368298103,1751100633007,-501.40233573,0.00019178,2]
[368298104,1751100633016,-460.0,0.00019178,2]
[368298105,1751100633026,-460.0,0.00019178,2]
[368298106,1751100633035,-460.0,0.00019178,2]
[368298107,1751100633046,-500.0,0.00019178,2]
[368298108,1751100633055,-460.0,0.00019178,2]
[368298109,1751100633066,-460.0,0.00019178,2]
[368298110,1751100633076,-460.0,0.00019178,2]
[368298111,1751100633086,-460.0,0.00019178,2]
[368298112,1751100633097,-460.0,0.00019178,2]
[368298113,1751100633107,-460.0,0.00019178,2]
[368298114,1751100633118,-470.04883305,0.00019178,2]
[368298115,1751100633128,-464.60463193,0.00019178,2]
[368298116,1751100633138,-284.65128269,0.00019178,2]
[368298117,1751100633148,-453.60659987,0.00019178,2]
[368298118,1751100633158,-445.01177411,0.00019178,2]
[368298119,1751100633168,-460.0,0.00019178,2]
[368298120,1751100633178,-460.0,0.00019178,2]
[368298121,1751100633187,-475.83459103,0.00019178,2]
[368298122,1751100633197,-460.0,0.00019178,2]
[368298123,1751100633207,-460.0,0.00019178,2]
[368298124,1751100633217,-460.0,0.00019178,2]
[368298125,1751100633227,-218.12,0.00019178,2]
[368298126,1751100633237,-460.0,0.00019178,2]
[368298127,1751100633246,-460.0,0.00019178,2]
[368298128,1751100633255,-460.0,0.00019178,2]
[368298129,1751100633265,-157.25833172,0.00019178,2]
[368298130,1751100633274,-460.0,0.00019178,2]
[368298131,1751100633284,-460.0,0.00019178,2]
[368298132,1751100633294,-460.0,0.00019178,2]
[368298133,1751100633303,-460.0,0.00019178,2]
[368298134,1751100633313,-460.0,0.00019178,2]
[368298135,1751100633323,-442.89393582,0.00019178,2]
[368298136,1751100633333,-260.44628904,0.00019178,2]
[368298137,1751100633342,-460.0,0.00019178,2]
[368298138,1751100633352,-460.0,0.00019178,2]
[368298139,1751100633362,-460.0,0.00019178,2]
[368298140,1751100633372,-460.0,0.00019178,2]
[368298141,1751100633381,-1386.5,0.00019178,2]
[368298142,1751100633391,-460.0,0.00019178,2]
[368298143,1751100633400,-460.0,0.00019178,2]
[368298144,1751100633409,-500.0,0.00019178,2]
[368298145,1751100633418,-518.97221466,0.00019178,2]
[368298146,1751100633428,-460.0,0.00019178,2]
[368298147,1751100633437,-460.0,0.00019178,2]
[368298148,1751100633445,-460.0,0.00019178,2]
[368298149,1751100633454,-460.0,0.00019178,2]
[368298150,1751100633464,-460.0,0.00019178,2]
[368298151,1751100633473,-460.0,0.00019178,2]
[368298152,1751100633482,-185.47605199,0.00019178,2]
[368298153,1751100633491,-460.0,0.00019178,2]
[368298154,1751100633501,-460.0,0.00019178,2]
[368298155,1751100633510,-460.0,0.00019178,2]
[368298156,1751100633519,-500.0,0.00019178,2]
[368298157,1751100633529,-460.0,0.00019178,2]
[368298158,1751100633539,-591.39,0.00019178,2]
[368298159,1751100633548,-460.0,0.00019178,2]
[368298160,1751100633558,-460.0,0.00019178,2]
[368298161,1751100633568,-460.0,0.00019178,2]
[368298162,1751100633577,-459.28170979,0.00019178,2]
[368298163,1751100633587,-460.0,0.00019178,2]
[368298164,1751100633597,-460.0,0.00019178,2]
[368298165,1751100633607,-977.48,0.00019178,2]
[368298166,1751100633616,-460.0,0.00019178,2]
[368298167,1751100633626,-460.0,0.00019178,2]
[368298168,1751100633636,-470.74832594,0.00019178,2]
[368298169,1751100633646,-566.35111701,0.00019178,2]
[368298170,1751100633656,-460.0,0.00019178,2]
[368298171,1751100633666,-500.0,0.00019178,2]
[368298172,1751100633675,-437.34104707,0.00019178,2]
[368298173,1751100633685,-378.32158637,0.00019178,2]
[368298174,1751100633694,-373.77731891,0.00019178,2]
[368298175,1751100633704,-463.16510403,0.00019178,2]
[368298176,1751100633716,-451.48202457,0.00019178,2]
[368298177,1751100633725,-500.0,0.00019178,2]
[368298178,1751100633735,-500.0,0.00019178,2]
[368298179,1751100633744,-460.0,0.00019178,2]
[368298180,1751100633755,-405.68138621,0.00019178,2]
[368298181,1751100633764,-501.76439524,0.00019178,2]
[368298182,1751100633773,-460.0,0.00019178,2]
[368298183,1751100633783,-460.0,0.00019178,2]
[368298184,1751100633793,-460.0,0.00019178,2]
[368298185,1751100633935,-524.24754194,0.00019178,2]
[368298186,1751100633946,-460.0,0.00019178,2]
[368298187,1751100633955,-460.0,0.00019178,2]
[368298188,1751100633965,-217.83730844,0.00019178,2]
[368298189,1751100633974,-460.0,0.00019178,2]
[368298190,1751100633984,-500.0,0.00019178,2]
[368298191,1751100633993,-460.0,0.00019178,2]
[368298192,1751100634003,-473.37326785,0.00019178,2]
[368298193,1751100634012,-500.0,0.00019178,2]
[368298194,1751100634022,-500.0,0.00019178,2]
[368298195,1751100634031,-638.77340163,0.00019178,2]
[368298196,1751100634039,-460.0,0.00019178,2]
[368298197,1751100634048,-460.0,0.00019178,2]
[368298198,1751100634058,-425.47163809,0.00019178,2]
[368298199,1751100634068,-500.0,0.00019178,2]
[368298200,1751100634078,-460.0,0.00019178,2]
[368298201,1751100634087,-460.0,0.00019178,2]
[368298202,1751100634097,-463.79981392,0.00019178,2]
[368298203,1751100634107,-460.0,0.00019178,2]
[368298204,1751100634117,-538.43683556,0.00019178,2]
[368298205,1751100634127,-460.0,0.00019178,2]
[368298206,1751100634137,-460.0,0.00019178,2]
[368298207,1751100634146,-472.19368313,0.00019178,2]
[368298208,1751100634156,-460.0,0.00019178,2]
[368298209,1751100634165,-460.0,0.00019178,2]
[368298210,1751100634174,-433.5343368,0.00019178,2]
[368298211,1751100634183,-460.0,0.00019178,2]
[368298212,1751100634193,-460.0,0.00019178,2]
[368298213,1751100634202,-460.0,0.00019178,2]
[368298214,1751100634212,-460.0,0.00019178,2]
[368298215,1751100634221,-500.0,0.00019178,2]
[368298216,1751100634230,-467.03794227,0.00019178,2]
[368298217,1751100634240,-1544.88,0.00019178,2]
[368298218,1751100634249,-567.4170901,0.00019178,2]
[368298219,1751100634257,-460.0,0.00019178,2]
[368298220,1751100634266,-460.0,0.00019178,2]
[368298221,1751100634276,-1093.87,0.00019178,2]
[368298222,1751100634285,-1697.86,0.00019178,2]
[368298223,1751100634295,-500.0,0.00019178,2]
[368298224,1751100634304,-460.0,0.00019178,2]
[368298225,1751100634313,-460.0,0.00019178,2]
[368298226,1751100634323,-460.0,0.00019178,2]
[368298227,1751100634333,-470.1859622,0.00019178,2]
[368298228,1751100634342,-500.0,0.00019178,2]
[368298229,1751100634351,-460.0,0.00019178,2]
[368298230,1751100634360,-460.0,0.00019178,2]
[368298231,1751100634369,-460.0,0.00019178,2]
[368298232,1751100634379,-1747.34,0.00019178,2]
[368298233,1751100634388,-500.92810676,0.00019178,2]
[368298234,1751100634397,-460.0,0.00019178,2]
[368298235,1751100634407,-500.99989822,0.00019178,2]
[368298236,1751100634416,-460.0,0.00019178,2]
[368298237,1751100634426,-460.0,0.00019178,2]
[368298238,1751100634435,-539.18673232,0.00019178,2]
[368298239,1751100634445,-1159.51,0.00019178,2]
[368298240,1751100634454,-366.19623744,0.00019178,2]
[368298241,1751100634463,-862.57,0.00019178,2]
[368298242,1751100634472,-460.0,0.00019178,2]
[368298243,1751100634483,-460.0,0.00019178,2]
[368298244,1751100634491,-460.0,0.00019178,2]
[368298245,1751100634500,-500.0,0.00019178,2]
[368298246,1751100634510,-500.0,0.00019178,2]
[368298247,1751100634519,-516.00506226,0.00019178,2]
[368298248,1751100634528,-460.0,0.00019178,2]
[368298249,1751100634538,-461.77,0.00019178,2]
[368298250,1751100634547,-500.0,0.00019178,2]
[368298251,1751100634556,-420.5229205,0.00019178,2]
[368298252,1751100634565,-418.56414791,0.00019178,2]
[368298253,1751100634575,-460.0,0.00019178,2]
[368298254,1751100634585,-297.50663095,0.00019178,2]
[368298255,1751100634594,-3084.43,0.00019178,2]
[368298256,1751100634604,-460.0,0.00019178,2]
[368298257,1751100634614,-2476.82,0.00019178,2]
[368298258,1751100634623,-460.0,0.00019178,2]
[368298259,1751100634632,-460.0,0.00019178,2]
[368298260,1751100634642,-460.0,0.00019178,2]
[368298261,1751100634651,-437.00788135,0.00019178,2]
[368298262,1751100634661,-1223.39,0.00019178,2]
[368298263,1751100634670,-460.0,0.00019178,2]
[368298264,1751100634680,-739.08,0.00019178,2]
[368298265,1751100634689,-656.69,0.00019178,2]
[368298266,1751100634699,-2386.21,0.00019178,2]
[368298267,1751100634708,-460.0,0.00019178,2]
[368298268,1751100634717,-746.77,0.00019178,2]
[368298269,1751100634727,-460.0,0.00019178,2]
[368298270,1751100634736,-460.0,0.00019178,2]
[368298271,1751100634745,-262.73755337,0.00019178,2]
[368298272,1751100634755,-460.0,0.00019178,2]
[368298273,1751100634763,-430.0,0.00019178,2]
[368298274,1751100634772,-460.0,0.00019178,2]
[368298275,1751100634783,-460.0,0.00019178,2]
[368298276,1751100634791,-445.86671002,0.00019178,2]
[368298277,1751100634800,-738.23,0.00019178,2]
[368298278,1751100634810,-460.0,0.00019178,2]
[368298279,1751100634819,-460.0,0.00019178,2]
[368298280,1751100634828,-460.0,0.00019178,2]
[368298281,1751100634837,-460.0,0.00019178,2]
[368298282,1751100634846,-460.0,0.00019178,2]
[368298283,1751100634855,-563.92,0.00019178,2]
[368298284,1751100634865,-460.0,0.00019178,2]
[368298285,1751100634874,-503.69,0.00019178,2]
[368298286,1751100634883,-460.0,0.00019178,2]
[368298287,1751100634892,-711.07,0.00019178,2]
[368298288,1751100634901,-401.50778507,0.00019178,2]
[368298289,1751100634911,-443.31215854,0.00019178,2]
[368298290,1751100634920,-868.94,0.00019178,2]
[368298291,1751100634929,-460.0,0.00019178,2]
[368298292,1751100634938,-3105.15,0.00019178,2]
[368298293,1751100634947,-518.0,0.00019178,2]
[368298294,1751100634956,-556.19,0.00019178,2]
[368298295,1751100634965,-460.0,0.00019178,2]
[368298296,1751100634975,-338.46,0.00019178,2]
[368298297,1751100634984,-460.0,0.00019178,2]
[368298298,1751100634993,-1208.1,0.00019178,2]
[368298299,1751100635002,-460.0,0.00019178,2]
[368298300,1751100635011,-3835.4,0.00019178,2]
[368298301,1751100635020,-500.0,0.00019178,2]
[368298302,1751100635029,-500.0,0.00019178,2]
[368298303,1751100635039,-180.27084496,0.00019178,2]
[368298304,1751100635048,-500.0,0.00019178,2]
[368298305,1751100635058,-500.0,0.00019178,2]
[368298306,1751100635068,-500.0,0.00019178,2]
[368298307,1751100635078,-460.0,0.00019178,2]
[368298308,1751100635088,-500.0,0.00019178,2]
[368298309,1751100635097,-324.22,0.00019178,2]
[368298310,1751100635107,-460.0,0.00019178,2]
[368298311,1751100635117,-3094.67,0.00019178,2]
[368298312,1751100635126,-460.0,0.00019178,2]
[368298313,1751100635135,-460.0,0.00019178,2]
[368298314,1751100635145,-750.08,0.00019178,2]
[368298315,1751100635154,-446.73923514,0.00019178,2]
[368298316,1751100635163,-487.76071805,0.00019178,2]
[368298317,1751100635172,-460.0,0.00019178,2]
[368298318,1751100635182,-460.0,0.00019178,2]
[368298319,1751100635191,-590.21,0.00019178,2]
[368298320,1751100635201,-231.94628323,0.00019178,2]
[368298321,1751100635210,-2380.9,0.00019178,2]
[368298322,1751100635220,-465.70699221,0.00019178,2]
[368298323,1751100635229,-460.0,0.00019178,2]
[368298324,1751100635238,-4278.54,0.00019178,2]
[368298325,1751100635248,-569.58,0.00019178,2]
[368298326,1751100635257,-587.62,0.00019178,2]
[368298327,1751100635266,-460.0,0.00019178,2]
[368298328,1751100635275,-2589.18,0.00019178,2]
[368298329,1751100635285,-601.56162819,0.00019178,2]
[368298330,1751100635294,-460.0,0.00019178,2]
[368298331,1751100635304,-1943.91,0.00019178,2]
[368298332,1751100635313,-460.0,0.00019178,2]
[368298333,1751100635322,-460.0,0.00019178,2]
[368298334,1751100635331,-518.96,0.00019178,2]
[368298335,1751100635340,-460.0,0.00019178,2]
[368298336,1751100635349,-1351.92,0.00019178,2]
[368298337,1751100635358,-433.06406449,0.00019178,2]
[368298338,1751100635367,-466.41914392,0.00019178,2]
[368298339,1751100635377,-411.396774,0.00019178,2]
[368298340,1751100635386,-408.22547175,0.00019178,2]
[368298341,1751100635395,-460.0,0.00019178,2]
[368298342,1751100635405,-1275.78,0.00019178,2]
[368298343,1751100635414,-510.56232506,0.00019178,2]
[368298344,1751100635423,-460.0,0.00019178,2]
[368298345,1751100635433,-460.0,0.00019178,2]
[368298346,1751100635442,-460.0,0.00019178,2]
[368298347,1751100635451,-681.64,0.00019178,2]
[368298348,1751100635461,-460.0,0.00019178,2]
[368298349,1751100635470,-1887.23,0.00019178,2]
[368298350,1751100635480,-460.0,0.00019178,2]
[368298351,1751100635490,-460.0,0.00019178,2]
[368298352,1751100635499,-460.0,0.00019178,2]
[368298353,1751100635508,-460.0,0.00019178,2]
[368298354,1751100635517,-6146.34,0.00019178,2]
[368298355,1751100635527,-480.08761318,0.00019178,2]
[368298356,1751100635536,-699.47,0.00019178,2]
[368298357,1751100635544,-500.0,0.00019178,2]
[368298358,1751100635554,-460.0,0.00019178,2]
[368298359,1751100635563,-460.0,0.00019178,2]
[368298360,1751100635572,-465.81157513,0.00019178,2]
[368298361,1751100635581,-460.0,0.00019178,2]
[368298362,1751100635591,-460.0,0.00019178,2]
[368298363,1751100635600,-460.0,0.00019178,2]
[368298364,1751100635609,-602.11,0.00019178,2]
[368298365,1751100635619,-460.0,0.00019178,2]
[368298366,1751100635628,-460.0,0.00019178,2]
[368298367,1751100635638,-460.0,0.00019178,2]
[368298368,1751100635647,-797.62,0.00019178,2]
[368298369,1751100635656,-460.0,0.00019178,2]
[368298370,1751100635666,-287.9081345,0.00019178,2]
[368298371,1751100635675,-937.19,0.00019178,2]
[368298372,1751100635684,-460.0,0.00019178,2]
[368298373,1751100635694,-849.38,0.00019178,2]
[368298374,1751100635703,-460.0,0.00019178,2]
[368298375,1751100635718,-423.86481928,0.00019178,2]
[368298376,1751100635727,-460.0,0.00019178,2]
[368298377,1751100635736,-305.49752448,0.00019178,2]
[368298378,1751100635746,-460.0,0.00019178,2]
[368298379,1751100635756,-460.0,0.00019178,2]
[368298380,1751100635765,-437.95006106,0.00019178,2]
[368298381,1751100635774,-460.0,0.00019178,2]
[368298382,1751100635783,-460.0,0.00019178,2]
[368298383,1751100635792,-460.0,0.00019178,2]
[368298384,1751100635802,-460.0,0.00019178,2]
[368298385,1751100635812,-238.037796,0.00019178,2]
[368298386,1751100635821,-2552.4879549,0.00019178,2]
[368298387,1751100635831,-151.0,0.0001926,2]
[368298388,1751100635840,-198.80601556,0.00019287,2]
[368298389,1751100635850,-18607.43348381,0.00019329,2]
[368298390,1751100635859,-2400.32109275,0.00019414,2]
[368298391,1751100635868,-460.0,0.00019452,2]
[368298392,1751100635877,-540.0,0.00019452,2]
[368298393,1751100635886,-381.03540625,0.00019452,2]
[368298394,1751100635895,-540.0,0.00019452,2]
[368298395,1751100635904,-460.0,0.00019452,2]
[368298396,1751100635913,-540.0,0.00019452,2]
[368298397,1751100635923,-460.0,0.00019452,2]
[368298398,1751100635932,-460.0,0.00019452,2]
[368298399,1751100635942,-540.0,0.00019452,2]
[368298400,1751100635951,-460.0,0.00019452,2]
[368298401,1751100635961,-460.0,0.00019452,2]
[368298402,1751100635970,-460.0,0.00019452,2]
[368298403,1751100635981,-460.0,0.00019452,2]
[368298404,1751100635991,-460.0,0.00019452,2]
[368298405,1751100635999,-460.0,0.00019452,2]
[368298406,1751100636009,-460.0,0.00019452,2]
[368298407,1751100636018,-374.41268073,0.00019452,2]
[368298408,1751100636028,-460.0,0.00019452,2]
[368298409,1751100636037,-460.0,0.00019452,2]
[368298410,1751100636046,-460.0,0.00019452,2]
[368298411,1751100636058,-460.0,0.00019452,2]
[368298412,1751100636068,-460.0,0.00019452,2]
[368298413,1751100636077,-460.0,0.00019452,2]
[368298414,1751100636087,-460.0,0.00019452,2]
[368298415,1751100636096,-597.41,0.00019452,2]
[368298416,1751100636106,-460.0,0.00019452,2]
[368298417,1751100636115,-460.0,0.00019452,2]
[368298418,1751100636125,-460.0,0.00019452,2]
[368298419,1751100636134,-165.49,0.00019452,2]
[368298420,1751100636144,-463.50923836,0.00019452,2]
[368298421,1751100636153,-1386.5,0.00019452,2]
[368298422,1751100636163,-460.0,0.00019452,2]
[368298423,1751100636173,-460.0,0.00019452,2]
[368298424,1751100636182,-460.0,0.00019452,2]
[368298425,1751100636192,-460.0,0.00019452,2]
[368298426,1751100636202,-460.0,0.00019452,2]
[368298427,1751100636212,-460.0,0.00019452,2]
[368298428,1751100636221,-460.0,0.00019452,2]
[368298429,1751100636231,-460.0,0.00019452,2]
[368298430,1751100636241,-460.0,0.00019452,2]
[368298431,1751100636252,-460.0,0.00019452,2]
[368298432,1751100636262,-460.0,0.00019452,2]
[368298433,1751100636272,-591.39,0.00019452,2]
[368298434,1751100636281,-460.0,0.00019452,2]
[368298435,1751100636291,-460.0,0.00019452,2]
[368298436,1751100636300,-460.0,0.00019452,2]
[368298437,1751100636310,-460.0,0.00019452,2]
[368298438,1751100636319,-977.48,0.00019452,2]
[368298439,1751100636329,-460.0,0.00019452,2]
[368298440,1751100636339,-460.0,0.00019452,2]
[368298441,1751100636348,-460.0,0.00019452,2]
[368298442,1751100636357,-500.0,0.00019452,2]
[368298443,1751100636366,-460.0,0.00019452,2]
[368298444,1751100636376,-504.45535336,0.00019452,2]
[368298445,1751100636385,-460.0,0.00019452,2]
[368298446,1751100636394,-460.0,0.00019452,2]
[368298447,1751100636403,-460.0,0.00019452,2]
[368298448,1751100636412,-460.0,0.00019452,2]
[368298449,1751100636422,-460.0,0.00019452,2]
[368298450,1751100636431,-465.20090635,0.00019452,2]
[368298451,1751100636440,-460.0,0.00019452,2]
[368298452,1751100636450,-541.96457946,0.00019452,2]
[368298453,1751100636459,-440.0,0.00019452,2]
[368298454,1751100636469,-460.0,0.00019452,2]
[368298455,1751100636478,-460.0,0.00019452,2]
[368298456,1751100636487,-460.0,0.00019452,2]
[368298457,1751100636496,-460.0,0.00019452,2]
[368298458,1751100636505,-1544.88,0.00019452,2]
[368298459,1751100636515,-460.0,0.00019452,2]
[368298460,1751100636731,-460.0,0.00019452,2]
[368298461,1751100636742,-1093.87,0.00019452,2]
[368298462,1751100636751,-1697.86,0.00019452,2]
[368298463,1751100636761,-460.0,0.00019452,2]
[368298464,1751100636770,-460.0,0.00019452,2]
[368298465,1751100636779,-460.0,0.00019452,2]
[368298466,1751100636788,-460.0,0.00019452,2]
[368298467,1751100636798,-1747.34,0.00019452,2]
[368298468,1751100636807,-460.0,0.00019452,2]
[368298469,1751100636817,-460.0,0.00019452,2]
[368298470,1751100636826,-460.0,0.00019452,2]
[368298471,1751100636835,-1159.51,0.00019452,2]
[368298472,1751100636844,-862.57,0.00019452,2]
[368298473,1751100636854,-460.0,0.00019452,2]
[368298474,1751100636863,-540.0,0.00019452,2]
[368298475,1751100636980,-460.0,0.00019452,2]
[368298476,1751100636990,-461.77,0.00019452,2]
[368298477,1751100636999,-3084.43,0.00019452,2]
[368298478,1751100637009,-2476.82,0.00019452,2]
[368298479,1751100637018,-460.0,0.00019452,2]
[368298480,1751100637028,-460.0,0.00019452,2]
[368298481,1751100637037,-1223.39,0.00019452,2]
[368298482,1751100637046,-460.0,0.00019452,2]
[368298483,1751100637055,-739.08,0.00019452,2]
[368298484,1751100637064,-656.69,0.00019452,2]
[368298485,1751100637074,-2386.21,0.00019452,2]
[368298486,1751100637083,-746.77,0.00019452,2]